lending/lending_fUSD_20240703
["ID","MTS","AMOUNT","RATE_DAILY","PERIOD"]
[331048460,1720045847207,-250.0,0.00019178,2]
[331048462,1720045847216,-164.59348591,0.0002,3]
[331048464,1720045847225,-833.67211018,0.0002,2]
[331048466,1720045847238,-155.0,0.00020233,2]
[331048468,1720045847247,-1290.14,0.00020238,2]
[331048470,1720045847256,-150.0,0.00020247,2]
[331048472,1720045847266,-150.0,0.00020247,2]
[331048474,1720045847276,-150.0,0.00020247,2]
[331048476,1720045847285,-845.08,0.00020314,2]
[331048478,1720045847294,-863.666469,0.0002034,2]
[331048480,1720045847303,-599.717187,0.0002034,2]
[331048482,1720045847313,-820.984693,0.0002034,2]
[331048484,1720045847322,-1432.314723,0.0002034,2]
[331048487,1720045847332,-1371.382682,0.0002034,2]
[331048488,1720045847340,-1499.292968,0.0002034,2]
[331048490,1720045847350,-863.666469,0.00020595,2]
[331048492,1720045847359,-599.717187,0.00020595,2]
[331048495,1720045847369,-820.984693,0.00020595,2]
[331048496,1720045847378,-1432.314723,0.00020595,2]
[331048498,1720045847387,-1371.382682,0.00020595,2]
[331048500,1720045847397,-1499.292968,0.00020595,2]
[331048502,1720045847406,-4529.4146,0.00020749,2]
[331048504,1720045847415,-812.0,0.00020759,2]
[331048506,1720045847424,-1293.0,0.00020759,2]
[331048508,1720045847434,-1751.98,0.00020759,2]
[331048510,1720045847444,-150.0,0.00020795,2]
[331048512,1720045847453,-150.0,0.00020795,2]
[331048514,1720045847463,-434.33686479,0.000208,2]
[331048516,1720045847473,-863.666469,0.00020849,2]
[331048519,1720045847485,-599.717187,0.00020849,2]
[331048521,1720045847494,-820.984693,0.00020849,2]
[331048523,1720045847504,-1432.314723,0.00020849,2]
[331048525,1720045847514,-1371.382682,0.00020849,2]
[331048527,1720045847524,-1499.292968,0.00020849,2]
[331048529,1720045847533,-22008.189,0.000209,2]
[331048530,1720045847543,-60748.0866,0.000209,2]
[331048532,1720045847552,-199.39,0.00020908,2]
[331048534,1720045847562,-5000.0,0.00021,3]
[331048536,1720045847571,-25000.0,0.00021,30]
[331048538,1720045847580,-260.8865,0.00021003,2]
[331048540,1720045847590,-434.33686471,0.00021032,2]
[331048542,1720045847600,-150.8,0.00021064,2]
[331048544,1720045847609,-863.666469,0.00021103,2]
[331048546,1720045847622,-599.717187,0.00021103,2]
[331048548,1720045847632,-820.984693,0.00021103,2]
[331048550,1720045847641,-1432.314723,0.00021103,2]
[331048552,1720045847651,-1371.382682,0.00021103,2]
[331048554,1720045847661,-1499.292968,0.00021103,2]
[331048556,1720045847670,-218.0,0.0002113,2]
[331048558,1720045847679,-450.14,0.00021216,2]
[331048560,1720045847689,-434.33686471,0.00021264,2]
[331048562,1720045847701,-37457.73,0.00021308,6]
[331048564,1720045847710,-2534.73,0.00021308,6]
[331048566,1720045847719,-863.666469,0.00021357,2]
[331048568,1720045847728,-599.717187,0.00021357,2]
[331048570,1720045847738,-820.984693,0.00021357,2]
[331048572,1720045847746,-1432.314723,0.00021357,2]
[331048574,1720045847755,-1371.382682,0.00021357,2]
[331048575,1720045847765,-1499.292968,0.00021357,2]
[331048577,1720045847774,-158.75288571,0.00021391,2]
[331048580,1720045847783,-314.61458281,0.00021391,2]
[331048582,1720045847794,-180.0,0.00021397,2]
[331048584,1720045847803,-4831.18257455,0.000214,2]
[331048586,1720045847812,-166.83650147,0.000214,2]
[331048588,1720045847822,-1806.9164,0.000214,2]
[331048590,1720045847830,-218.0,0.0002142,2]
[331048592,1720045847840,-150.5,0.0002147,30]
[331048594,1720045847849,-150.5,0.0002148,30]
[331048596,1720045847859,-150.5,0.0002149,30]
[331048598,1720045847867,-231953.637159,0.0002149,2]
[331048600,1720045847877,-217.04969711,0.00021491,2]
[331048602,1720045847886,-1585.23300841,0.00021491,2]
[331048604,1720045847895,-434.33686471,0.00021497,2]
[331048606,1720045847904,-290.35682661,0.00021499,2]
[331048608,1720045847914,-500.0,0.00021499,2]
[331048610,1720045847923,-416.65956651,0.00021499,2]
[331048611,1720045847932,-500.0,0.00021499,2]
[331048612,1720045847942,-500.0,0.00021499,2]
[331048613,1720045847952,-567.08528476,0.00021499,2]
[331048614,1720045847961,-500.0,0.00021499,2]
[331048615,1720045847971,-500.0,0.00021499,2]
[331048616,1720045847980,-500.0,0.00021499,2]
[331048617,1720045847990,-398.84811319,0.00021499,2]
[331048618,1720045847999,-805.0,0.000215,2]
[331048619,1720045848009,-1389389.32402649,0.000215,5]
[331048620,1720045848018,-1000.0,0.000215,6]
[331048621,1720045848027,-1000.0,0.000215,5]
[331048622,1720045848036,-9529.62,0.000215,5]
[331048624,1720045848045,-261.2316271,0.000215,2]
[331048626,1720045848054,-56158.97,0.000215,5]
[331048628,1720045848063,-500.0,0.000215,2]
[331048630,1720045848073,-500.0,0.000215,2]
[331048632,1720045848082,-530.32475659,0.00021507,2]
[331048634,1720045848091,-6019.0,0.00021507,2]
[331048636,1720045848099,-4831.18257451,0.00021535,2]
[331048638,1720045848108,-233.26204,0.0002155,2]
[331048640,1720045848117,-182.23597,0.0002155,2]
[331048642,1720045848126,-182.23597,0.0002155,2]
[331048644,1720045848136,-530.32475659,0.00021589,2]
[331048646,1720045848145,-2912.9957026,0.00021609,2]
[331048648,1720045848154,-393.0,0.0002164,3]
[331048650,1720045848163,-155.0,0.00021643,2]
[331048652,1720045848172,-459.07,0.00021644,2]
[331048654,1720045848181,-151.49,0.00021644,2]
[331048656,1720045848190,-313.65,0.00021644,2]
[331048658,1720045848199,-169.52,0.00021644,2]
[331048660,1720045848208,-500.0,0.00021671,2]
[331048662,1720045848217,-4831.18257451,0.00021671,2]
[331048664,1720045848225,-500.0,0.00021679,2]
[331048665,1720045848235,-500.0,0.00021688,2]
[331048667,1720045848245,-500.0,0.00021697,2]
[331048670,1720045848254,-530.32475659,0.00021699,2]
[331048672,1720045848263,-22362.55675355,0.000217,2]
[331048674,1720045848272,-4827.45922203,0.000217,21]
[331048676,1720045848281,-500.0,0.00021706,2]
[331048677,1720045848291,-151.0,0.00021707,2]
[331048680,1720045848300,-218.0,0.0002171,2]
[331048682,1720045848309,-500.0,0.00021715,2]
[331048683,1720045848318,-500.0,0.00021723,2]
[331048686,1720045848327,-434.33686471,0.00021729,2]
[331048688,1720045848337,-300.0,0.00021731,2]
[331048690,1720045848346,-2100.0,0.00021731,2]
[331048691,1720045848355,-500.0,0.00021732,2]
[331048694,1720045848365,-209.0,0.0002174,2]
[331048696,1720045848374,-500.0,0.00021741,2]
[331048698,1720045848383,-500.0,0.0002175,2]
[331048700,1720045848392,-500.0,0.00021759,2]
[331048701,1720045848401,-500.0,0.00021767,2]
[331048703,1720045848410,-716.63369653,0.0002177,2]
[331048706,1720045848420,-1000.0,0.0002177,2]
[331048708,1720045848430,-500.0,0.00021776,2]
[331048709,1720045848439,-500.0,0.00021776,2]
[331048712,1720045848449,-530.32475659,0.00021781,2]
[331048713,1720045848458,-500.0,0.00021785,2]
[331048715,1720045848468,-500.0,0.00021785,2]
[331048717,1720045848478,-500.0,0.00021794,2]
[331048720,1720045848488,-500.0,0.00021794,2]
[331048721,1720045848498,-500.0,0.00021794,2]
[331048722,1720045848507,-1024.55764554,0.000218,2]
[331048723,1720045848517,-500.0,0.00021803,2]
[331048724,1720045848527,-500.0,0.00021803,2]
[331048725,1720045848536,-500.0,0.00021803,2]
[331048726,1720045848545,-4831.18257451,0.00021806,2]
[331048727,1720045848554,-500.0,0.00021811,2]
[331048728,1720045848564,-500.0,0.00021811,2]
[331048729,1720045848573,-500.0,0.00021811,2]
[331048730,1720045848710,-21206.2701,0.00021817,2]
[331048731,1720045848720,-2912.9957026,0.00021817,2]
[331048732,1720045848731,-501.75116496,0.00021817,2]
[331048733,1720045848739,-340.20463014,0.00021817,2]
[331048734,1720045848750,-8695.36257414,0.00021817,2]
[331048735,1720045848759,-500.0,0.0002182,2]
[331048736,1720045848767,-500.0,0.0002182,2]
[331048737,1720045848777,-500.0,0.0002182,2]
[331048738,1720045848788,-500.0,0.00021829,2]
[331048739,1720045848797,-500.0,0.00021829,2]
[331048740,1720045848806,-500.0,0.00021829,2]
[331048741,1720045848816,-500.0,0.00021838,2]
[331048742,1720045848825,-500.0,0.00021838,2]
[331048743,1720045848835,-500.0,0.00021838,2]
[331048744,1720045848844,-500.0,0.00021847,2]
[331048745,1720045848854,-500.0,0.00021847,2]
[331048746,1720045848863,-500.0,0.00021847,2]
[331048747,1720045848873,-500.0,0.00021847,2]
[331048748,1720045848883,-500.0,0.00021855,2]
[331048749,1720045848892,-500.0,0.00021855,2]
[331048750,1720045848901,-500.0,0.00021855,2]
[331048751,1720045848911,-500.0,0.00021855,2]
[331048752,1720045848921,-530.32475659,0.00021863,2]
[331048753,1720045848931,-500.0,0.00021864,2]
[331048754,1720045848942,-500.0,0.00021864,2]
[331048755,1720045848952,-500.0,0.00021864,2]
[331048756,1720045848960,-500.0,0.00021864,2]
[331048757,1720045848970,-400.0,0.0002187,2]
[331048758,1720045848980,-400.0,0.0002187,2]
[331048759,1720045848990,-401.56351853,0.0002187,2]
[331048760,1720045848999,-400.0,0.0002187,2]
[331048761,1720045849010,-400.0,0.0002187,2]
[331048762,1720045849021,-500.0,0.00021873,2]
[331048763,1720045849030,-500.0,0.00021873,2]
[331048764,1720045849039,-500.0,0.00021873,2]
[331048765,1720045849048,-500.0,0.00021873,2]
[331048766,1720045849058,-500.0,0.00021882,2]
[331048767,1720045849068,-500.0,0.00021882,2]
[331048768,1720045849079,-500.0,0.00021882,2]
[331048769,1720045849089,-500.0,0.00021882,2]
[331048770,1720045849098,-500.0,0.00021882,2]
[331048771,1720045849107,-5800.0,0.00021883,2]
[331048772,1720045849118,-500.0,0.0002189,2]
[331048773,1720045849127,-500.0,0.00021891,2]
[331048774,1720045849138,-500.0,0.00021891,2]
[331048775,1720045849148,-500.0,0.00021891,2]
[331048776,1720045849160,-500.0,0.00021891,2]
[331048777,1720045849169,-500.0,0.00021891,2]
[331048778,1720045849179,-5800.0,0.00021892,2]
[331048779,1720045849190,-500.0,0.00021899,2]
[331048780,1720045849199,-500.0,0.00021899,2]
[331048781,1720045849210,-500.0,0.00021899,2]
[331048782,1720045849219,-500.0,0.00021899,2]
[331048783,1720045849228,-500.0,0.00021899,2]
[331048784,1720045849237,-2000.0,0.000219,3]
[331048785,1720045849246,-672.76,0.000219,3]
[331048786,1720045849255,-2000.0,0.000219,3]
[331048787,1720045849264,-2000.0,0.000219,3]
[331048788,1720045849273,-2000.0,0.000219,3]
[331048789,1720045849284,-5800.0,0.000219,2]
[331048790,1720045849293,-5800.0,0.000219,2]
[331048791,1720045849303,-2000.0,0.000219,2]
[331048792,1720045849314,-5800.0,0.000219,2]
[331048793,1720045849324,-1219.0,0.000219,9]
[331048794,1720045849333,-5800.0,0.000219,2]
[331048795,1720045849342,-996.54,0.000219,2]
[331048796,1720045849355,-996.54,0.000219,2]
[331048797,1720045849364,-317.78,0.000219,2]
[331048798,1720045849375,-222.12,0.00021907,30]
[331048799,1720045849386,-500.0,0.00021908,2]
[331048800,1720045849395,-500.0,0.00021908,2]
[331048801,1720045849406,-500.0,0.00021908,2]
[331048802,1720045849417,-500.0,0.00021908,2]
[331048803,1720045849428,-500.0,0.00021908,2]
[331048804,1720045849439,-258374.99865438,0.00021914,2]
[331048805,1720045849448,-254.070407,0.00021916,4]
[331048806,1720045849457,-150.0,0.00021916,2]
[331048807,1720045849468,-150.0,0.00021916,7]
[331048808,1720045849477,-150.0,0.00021916,7]
[331048809,1720045849486,-150.0,0.00021916,7]
[331048810,1720045849496,-150.0,0.00021916,7]
[331048811,1720045849505,-150.0,0.00021916,7]
[331048812,1720045849515,-150.0,0.00021916,7]
[331048813,1720045849524,-150.0,0.00021916,7]
[331048814,1720045849534,-150.0,0.00021916,7]
[331048815,1720045849544,-150.0,0.00021916,7]
[331048816,1720045849554,-162.84481228,0.00021917,5]
[331048817,1720045849563,-76884.77436712,0.00021917,7]
[331048818,1720045849575,-500.0,0.00021917,4]
[331048819,1720045849588,-500.0,0.00021917,4]
[331048820,1720045849609,-500.0,0.00021917,4]
[331048821,1720045849632,-500.0,0.00021917,4]
[331048822,1720045849650,-631.84036922,0.00021917,4]
[331048823,1720045849672,-500.0,0.00021917,4]
[331048824,1720045849690,-500.0,0.00021917,4]
[331048825,1720045849710,-500.0,0.00021917,4]
[331048826,1720045849728,-500.0,0.00021917,4]
[331048827,1720045849742,-500.0,0.00021917,4]
[331048828,1720045849759,-500.0,0.00021917,4]
[331048829,1720045849777,-500.0,0.00021917,4]
[331048830,1720045849794,-500.0,0.00021917,4]
[331048831,1720045849805,-500.0,0.00021917,4]
[331048832,1720045849822,-500.0,0.00021917,4]
[331048833,1720045849837,-500.0,0.00021917,4]
[331048834,1720045849852,-500.0,0.00021917,4]
[331048835,1720045849867,-500.0,0.00021917,4]
[331048836,1720045849880,-478.77044106,0.00021917,4]
[331048837,1720045849896,-500.0,0.00021917,2]
[331048838,1720045849910,-500.0,0.00021917,2]
[331048839,1720045849927,-500.0,0.00021917,2]
[331048840,1720045849941,-500.0,0.00021917,2]
[331048841,1720045849955,-500.0,0.00021917,4]
[331048842,1720045849969,-500.0,0.00021917,4]
[331048843,1720045849984,-500.0,0.00021917,4]
[331048844,1720045849999,-500.0,0.00021917,4]
[331048845,1720045850013,-500.0,0.00021917,4]
[331048846,1720045850027,-500.0,0.00021917,4]
[331048847,1720045850041,-500.0,0.00021917,4]
[331048848,1720045850056,-500.0,0.00021917,4]
[331048849,1720045850072,-328.74882659,0.00021917,4]
[331048850,1720045850086,-500.0,0.00021917,4]
[331048851,1720045850102,-500.0,0.00021917,4]
[331048852,1720045850118,-500.0,0.00021917,4]
[331048853,1720045850133,-500.0,0.00021917,4]
[331048854,1720045850148,-500.0,0.00021917,4]
[331048855,1720045850162,-500.0,0.00021917,4]
[331048856,1720045850177,-500.0,0.00021917,4]
[331048857,1720045850192,-500.0,0.00021917,4]
[331048858,1720045850207,-500.0,0.00021917,4]
[331048859,1720045850222,-500.0,0.00021917,4]
[331048860,1720045850237,-500.0,0.00021917,4]
[331048861,1720045850252,-500.0,0.00021917,4]
[331048862,1720045850271,-500.0,0.00021917,4]
[331048863,1720045850286,-500.0,0.00021917,4]
[331048864,1720045850300,-500.0,0.00021917,4]
[331048865,1720045850314,-500.0,0.00021917,4]
[331048866,1720045850330,-500.0,0.00021917,4]
[331048867,1720045850344,-500.0,0.00021917,4]
[331048868,1720045850359,-500.0,0.00021917,4]
[331048869,1720045850374,-500.0,0.00021917,4]
[331048870,1720045850388,-500.0,0.00021917,4]
[331048871,1720045850403,-500.0,0.00021917,4]
[331048872,1720045850419,-500.0,0.00021917,4]
[331048873,1720045850434,-500.0,0.00021917,4]
[331048874,1720045850449,-340.64736771,0.00021917,4]
[331048875,1720045850464,-500.0,0.00021917,4]
[331048876,1720045850479,-500.0,0.00021917,4]
[331048877,1720045850493,-500.0,0.00021917,4]
[331048878,1720045850507,-500.0,0.00021917,4]
[331048879,1720045850521,-541.74777003,0.00021917,4]
[331048880,1720045850536,-500.0,0.00021917,4]
[331048881,1720045850550,-500.0,0.00021917,4]
[331048882,1720045850566,-3346.6,0.00021917,4]
[331048883,1720045850580,-3346.6,0.00021917,4]
[331048884,1720045850594,-3346.6,0.00021917,4]
[331048885,1720045850609,-3346.6,0.00021917,4]
[331048886,1720045850627,-3346.6,0.00021917,4]
[331048887,1720045850642,-3346.6,0.00021917,4]
[331048888,1720045850657,-3346.6,0.00021917,4]
[331048889,1720045850672,-3346.6,0.00021917,4]
[331048890,1720045850687,-3346.6,0.00021917,4]
[331048891,1720045850703,-500.0,0.00021917,4]
[331048892,1720045850718,-3346.6,0.00021917,4]
[331048893,1720045850732,-3346.6,0.00021917,4]
[331048894,1720045850747,-3346.6,0.00021917,4]
[331048895,1720045850762,-3346.6,0.00021917,4]
[331048896,1720045850776,-500.0,0.00021917,4]
[331048897,1720045850792,-3346.6,0.00021917,4]
[331048898,1720045850807,-3346.6,0.00021917,4]
[331048899,1720045850822,-3346.6,0.00021917,4]
[331048900,1720045850837,-3346.6,0.00021917,4]
[331048901,1720045850851,-3346.6,0.00021917,4]
[331048902,1720045850866,-3346.6,0.00021917,4]
[331048903,1720045850881,-3346.6,0.00021917,4]
[331048904,1720045850893,-3346.6,0.00021917,4]
[331048905,1720045850902,-3346.6,0.00021917,4]
[331048906,1720045850911,-500.0,0.00021917,4]
[331048907,1720045850921,-3346.6,0.00021917,4]
[331048908,1720045850930,-3346.74,0.00021917,4]
[331048909,1720045851183,-299.42834452,0.00021917,4]
[331048910,1720045851202,-1263.58,0.00021917,4]
[331048911,1720045851212,-1263.58,0.00021917,4]
[331048912,1720045851221,-1263.58,0.00021917,4]
[331048913,1720045851231,-1263.58,0.00021917,4]
[331048914,1720045851240,-1263.58,0.00021917,4]
[331048915,1720045851249,-1263.58,0.00021917,4]
[331048916,1720045851258,-1263.58,0.00021917,4]
[331048917,1720045851267,-1263.58,0.00021917,4]
[331048918,1720045851276,-1263.58,0.00021917,4]
[331048919,1720045851285,-1263.58,0.00021917,4]
[331048920,1720045851294,-1263.58,0.00021917,4]
[331048921,1720045851303,-649.04860809,0.00021917,4]
[331048922,1720045851312,-1263.58,0.00021917,4]
[331048923,1720045851321,-1263.58,0.00021917,4]
[331048924,1720045851330,-1263.58,0.00021917,4]
[331048925,1720045851338,-213.47414586,0.00021917,4]
[331048926,1720045851348,-1263.58,0.00021917,4]
[331048927,1720045851358,-1263.58,0.00021917,4]
[331048928,1720045851366,-1263.58,0.00021917,4]
[331048929,1720045851375,-500.0,0.00021917,4]
[331048930,1720045851384,-1263.58,0.00021917,4]
[331048931,1720045851393,-1263.58,0.00021917,4]
[331048932,1720045851402,-1263.58,0.00021917,4]
[331048933,1720045851410,-500.0,0.00021917,4]
[331048934,1720045851419,-1263.58,0.00021917,4]
[331048935,1720045851428,-1263.58,0.00021917,4]
[331048936,1720045851437,-1263.58,0.00021917,4]
[331048937,1720045851446,-1263.65,0.00021917,4]
[331048938,1720045851455,-500.0,0.00021917,4]
[331048939,1720045851466,-200.0,0.00021917,4]
[331048940,1720045851475,-852.54,0.00021917,4]
[331048941,1720045851485,-500.0,0.00021917,4]
[331048942,1720045851494,-852.54,0.00021917,4]
[331048943,1720045851503,-852.54,0.00021917,4]
[331048944,1720045851512,-500.0,0.00021917,4]
[331048945,1720045851521,-852.54,0.00021917,4]
[331048946,1720045851530,-852.54,0.00021917,4]
[331048947,1720045851538,-852.54,0.00021917,4]
[331048948,1720045851548,-852.54,0.00021917,4]
[331048949,1720045851557,-852.54,0.00021917,4]
[331048950,1720045851566,-852.54,0.00021917,4]
[331048951,1720045851575,-852.54,0.00021917,4]
[331048952,1720045851584,-852.54,0.00021917,4]
[331048953,1720045851593,-852.54,0.00021917,4]
[331048954,1720045851602,-852.54,0.00021917,4]
[331048955,1720045851611,-852.54,0.00021917,4]
[331048956,1720045851624,-500.0,0.00021917,4]
[331048957,1720045851633,-852.54,0.00021917,4]
[331048958,1720045851642,-852.54,0.00021917,4]
[331048959,1720045851652,-852.54,0.00021917,4]
[331048960,1720045851660,-500.0,0.00021917,4]
[331048961,1720045851671,-852.54,0.00021917,4]
[331048962,1720045851680,-852.54,0.00021917,4]
[331048963,1720045851689,-852.54,0.00021917,4]
[331048964,1720045851700,-852.54,0.00021917,4]
[331048965,1720045851709,-852.54,0.00021917,4]
[331048966,1720045851718,-852.54,0.00021917,4]
[331048967,1720045851728,-852.58826011,0.00021917,4]
[331048968,1720045851737,-671.18,0.00021917,4]
[331048969,1720045851746,-671.18,0.00021917,4]
[331048970,1720045851756,-671.18,0.00021917,4]
[331048971,1720045851765,-671.18,0.00021917,4]
[331048972,1720045851774,-671.18,0.00021917,4]
[331048973,1720045851783,-671.18,0.00021917,4]
[331048974,1720045851794,-671.18,0.00021917,4]
[331048975,1720045851803,-671.18,0.00021917,4]
[331048976,1720045851811,-671.18,0.00021917,4]
[331048977,1720045851821,-671.18,0.00021917,4]
[331048978,1720045851830,-671.18,0.00021917,4]
[331048979,1720045851839,-671.18,0.00021917,4]
[331048980,1720045851848,-671.18,0.00021917,4]
[331048981,1720045851857,-671.18,0.00021917,4]
[331048982,1720045851866,-671.18,0.00021917,4]
[331048983,1720045851876,-671.18,0.00021917,4]
[331048984,1720045851884,-671.18,0.00021917,4]
[331048985,1720045851894,-671.18,0.00021917,4]
[331048986,1720045851903,-671.18,0.00021917,4]
[331048987,1720045851912,-671.18,0.00021917,4]
[331048988,1720045851921,-671.18,0.00021917,4]
[331048989,1720045851930,-500.07919467,0.00021917,4]
[331048990,1720045851939,-671.18,0.00021917,4]
[331048991,1720045851948,-671.18,0.00021917,4]
[331048992,1720045851957,-671.35670217,0.00021917,4]
[331048993,1720045851967,-2234.09,0.00021917,4]
[331048994,1720045851976,-2234.09,0.00021917,4]
[331048995,1720045851986,-2234.09,0.00021917,4]
[331048996,1720045851996,-2234.09,0.00021917,4]
[331048997,1720045852006,-2234.09,0.00021917,4]
[331048998,1720045852015,-2234.09,0.00021917,4]
[331048999,1720045852024,-2234.09,0.00021917,4]
[331049000,1720045852034,-2234.09,0.00021917,4]
[331049001,1720045852043,-2234.09,0.00021917,4]
[331049002,1720045852053,-495.73894518,0.00021917,4]
[331049003,1720045852062,-2234.09,0.00021917,4]
[331049004,1720045852072,-2234.09,0.00021917,4]
[331049005,1720045852081,-500.0,0.00021917,4]
[331049006,1720045852091,-2234.09,0.00021917,4]
[331049007,1720045852101,-2234.09,0.00021917,4]
[331049008,1720045852110,-971.45,0.00021917,4]
[331049009,1720045852120,-2234.09,0.00021917,4]
[331049010,1720045852129,-500.0,0.00021917,4]
[331049011,1720045852138,-971.45,0.00021917,4]
[331049012,1720045852147,-2234.09,0.00021917,4]
[331049013,1720045852157,-2234.09,0.00021917,4]
[331049014,1720045852166,-971.45,0.00021917,4]
[331049015,1720045852175,-2234.09,0.00021917,4]
[331049016,1720045852185,-971.45,0.00021917,4]
[331049017,1720045852196,-2234.09,0.00021917,4]
[331049018,1720045852205,-971.45,0.00021917,4]
[331049019,1720045852216,-2234.09,0.00021917,4]
[331049020,1720045852225,-500.0,0.00021917,4]
[331049021,1720045852235,-971.45,0.00021917,4]
[331049022,1720045852244,-2234.09,0.00021917,4]
[331049023,1720045852254,-971.45,0.00021917,4]
[331049024,1720045852263,-2234.09,0.00021917,4]
[331049025,1720045852272,-971.45,0.00021917,4]
[331049026,1720045852282,-500.0,0.00021917,4]
[331049027,1720045852293,-2234.09,0.00021917,4]
[331049028,1720045852303,-971.45,0.00021917,4]
[331049029,1720045852313,-2234.09,0.00021917,4]
[331049030,1720045852322,-971.45,0.00021917,4]
[331049031,1720045852332,-971.45,0.00021917,4]
[331049032,1720045852342,-2234.21573931,0.00021917,4]
[331049033,1720045852350,-971.45,0.00021917,4]
[331049034,1720045852360,-971.45,0.00021917,4]
[331049035,1720045852370,-971.45,0.00021917,4]
[331049036,1720045852379,-971.45,0.00021917,4]
[331049037,1720045852388,-500.0,0.00021917,4]
[331049038,1720045852399,-971.45,0.00021917,4]
[331049039,1720045852408,-500.0,0.00021917,4]
[331049040,1720045852418,-971.45,0.00021917,4]
[331049041,1720045852429,-971.45,0.00021917,4]
[331049042,1720045852438,-971.45,0.00021917,4]
[331049043,1720045852449,-971.45,0.00021917,4]
[331049044,1720045852460,-971.45,0.00021917,4]
[331049045,1720045852472,-971.45,0.00021917,4]
[331049046,1720045852481,-971.45,0.00021917,4]
[331049047,1720045852490,-971.45964986,0.00021917,4]
[331049048,1720045852501,-500.0,0.00021917,4]
[331049049,1720045852510,-1016.84,0.00021917,4]
[331049050,1720045852521,-1016.84,0.00021917,4]
[331049051,1720045852530,-1016.84,0.00021917,4]
[331049052,1720045852539,-500.0,0.00021917,4]
[331049053,1720045852548,-1016.84,0.00021917,4]
[331049054,1720045852558,-1016.84,0.00021917,4]
[331049055,1720045852569,-2291.53,0.00021917,4]
[331049056,1720045852579,-1016.84,0.00021917,4]
[331049057,1720045852590,-1016.84,0.00021917,4]
[331049058,1720045852599,-2291.53,0.00021917,4]
[331049059,1720045852608,-2291.53,0.00021917,4]
[331049060,1720045852620,-1016.84,0.00021917,4]
[331049061,1720045852632,-500.0,0.00021917,4]
[331049062,1720045852641,-2291.53,0.00021917,4]
[331049063,1720045852652,-1016.84,0.00021917,4]
[331049064,1720045852663,-2291.53,0.00021917,4]
[331049065,1720045852673,-1016.84,0.00021917,4]
[331049066,1720045852682,-2291.53,0.00021917,4]
[331049067,1720045852692,-1016.84,0.00021917,4]
[331049068,1720045852705,-2291.53,0.00021917,4]
[331049069,1720045852715,-1016.84,0.00021917,4]
[331049070,1720045852725,-500.0,0.00021917,4]
[331049071,1720045852735,-2291.53,0.00021917,4]
[331049072,1720045852744,-1016.84,0.00021917,4]
[331049073,1720045852753,-2291.53,0.00021917,4]
[331049074,1720045852762,-1016.84,0.00021917,4]
[331049075,1720045852776,-2291.53,0.00021917,4]
[331049076,1720045852785,-1016.84,0.00021917,4]
[331049077,1720045852794,-2291.53,0.00021917,4]
[331049078,1720045852803,-500.0,0.00021917,4]
[331049079,1720045852813,-1016.84,0.00021917,4]
[331049080,1720045852822,-2291.53,0.00021917,4]
[331049081,1720045852831,-500.0,0.00021917,4]
[331049082,1720045852840,-500.0,0.00021917,4]
[331049083,1720045852849,-500.0,0.00021917,4]